Cogmind - Beta 13 @@@ ROGUE MODE // 2024.04.23 @ 22:01:11 Player: A Moose Result: Destroyed by YI-UF0 with YI-UF0's Doublenader Performance ------------- Evolutions (0) 0 Regions Visited (4) 800 Robots Destroyed (12) 60 Value Destroyed (248) 248 Prototype IDs (1) 20 Alien Tech Used (0) 0 Bonus (28) 28 TOTAL SCORE: 1156 Bonus ------- Follower Combat Kills 28 Cogmind --------- Core Integrity 0/250 Matter 286/300 Energy 125/125 System Corruption 4% Temperature Cool (0) Movement Rolling (80) Location -9/Mines Parts ------- > --- POWER (1) -------- Light Ion Engine > --- PROPULSION (2) --- Wheel Wheel > --- UTILITY (2) ------ Medium Storage Unit > --- WEAPON (2) ------- Light Assault Rifle Battle Cannon > --- INVENTORY (10) --- Light Ion Engine Light Nuclear Core Wheel Wheel Wheel Structural Scanner Experimental Sensor Array Small Laser Small Laser Light Assault Rifle Peak State ------------ > --- POWER ------------ Ion Engine > --- PROPULSION ------- Wheel Compact Wheel > --- UTILITY ---------- Medium Storage Unit Experimental Sensor Array > --- WEAPON ----------- Assault Rifle Light Assault Rifle > --- INVENTORY -------- Light Ion Engine Light Nuclear Core Wheel Improved Heat Sink Structural Scanner Small Laser Small Laser Light Assault Rifle Grenade Launcher Grenade Launcher [Rating: 16] Favorites ----------- Power Ion Engine Engine Ion Engine Propulsion Wheel Wheel Wheel Utility Improved Heat Sink Device Improved Heat Sink Storage Medium Storage Unit Weapon Light Assault Rifle Ballistic Gun Light Assault Rifle Ballistic Cannon Battle Cannon Launcher Rocket Launcher Build | -11 -10 -10 -10 -9 ------- Run | Yrd Mat Min Exi Min Slots Evolved . | . . . . . Power . | . . . . . Propulsion . | . . . . . Utility . | . . . . . Weapon . | . . . . . Parts Attached 25 | 6 2 . 1 16 Power 4 | 1 1 . . 2 Engine 4 | 1 1 . . 2 Core . | . . . . . Reactor . | . . . . . Propulsion 8 | 2 . . . 6 Treads . | . . . . . Leg . | . . . . . Wheel 8 | 2 . . . 6 Hover . | . . . . . Flight . | . . . . . Utility 5 | 1 1 . 1 2 Device 3 | . 1 . . 2 Storage 2 | 1 . . 1 . Processor . | . . . . . Hackware . | . . . . . Protection . | . . . . . Artifact . | . . . . . Weapon 8 | 2 . . . 6 Energy Gun . | . . . . . Energy Cannon . | . . . . . Ballistic Gun 4 | 2 . . . 2 Ballistic Cannon 1 | . . . . 1 Launcher 3 | . . . . 3 Special Weapon . | . . . . . Impact Weapon . | . . . . . Slashing Weapon . | . . . . . Piercing Weapon . | . . . . . Special Melee Weapon . | . . . . . Unidentified Prototypes 1 | . . . . 1 Parts Lost 11 | . . . . 11 Power 1 | . . . . 1 Propulsion 4 | . . . . 4 Utility 1 | . . . . 1 Weapon 5 | . . . . 5 Highest Loss Streak 5 | . . . . 5 To Critical Strikes . | . . . . . Average Slot Usage (%) 95 | . 86 100 100 94 Engine 13 | . 14 14 14 13 Wheel 25 | . 28 28 28 23 Device 12 | . 1 14 14 14 Storage 14 | . 14 14 14 14 Ballistic Gun 23 | . 28 28 28 18 Ballistic Cannon 2 | . . . . 4 Launcher 1 | . . . . 3 Naked Turns . | . . . . . Heaviest Build 21 | 11 14 14 19 21 Greatest Support 26 | 26 26 26 26 26 Greatest Overweight (x) 4 | . . . . 4 Average Overweight (x) . | . . . . . Largest Inventory Capacity 10 | 8 8 8 10 10 Average Capacity 9 | 7 8 8 8 10 Most Carried 10 | 4 8 8 8 10 Average Carried 8 | 2 5 8 8 9 Final Capacity 10 | 8 8 8 10 10 Final Carried 10 | 2 8 8 8 10 Class Distribution -------------------- 73% | Mutant 26% | Scavenger-Mutant Dominant Class ---------------- Mutant | -10/Materials Mutant | -10/Mines Mutant | -10/Exiles Scavenger-Mutant | -9/Mines Resources | -11 -10 -10 -10 -9 ----------- Run | Yrd Mat Min Exi Min Matter Collected 747 | 244 120 . . 383 Remotely . | . . . . . Salvage Created 393 | . 207 . . 186 Parts 32 | . 13 . . 19 Haulers Intercepted . | . . . . . Recyclers Shooed . | . . . . . Parts Field Recycled . | . . . . . Retrieved Matter . | . . . . . Parts Self-Destructed . | . . . . . Prevented . | . . . . . Kills | -11 -10 -10 -10 -9 ------- Run | Yrd Mat Min Exi Min Combat Hostiles Destroyed 26 | . 4 . . 22 Guns 11 | . 4 . . 7 Cannons 4 | . . . . 4 AOE 11 | . . . . 11 Classes Destroyed 5 | . 2 . . 3 Builder 2 | . . . . 2 Watcher 1 | . 1 . . . Swarmer 5 | . . . . 5 Grunt 4 | . 4 . . . Assembled 17 | . . . . 17 Best Kill Streak 12 | . 5 . . 12 Combat Bots Only 10 | . 3 . . 10 Max Kills in Single Turn 3 | . 1 . . 3 Gunslinging . | . . . . . Exploded 2 | . . . . 2 Melee . | . . . . . Uniques/NPCs Destroyed . | . . . . . Combat | -11 -10 -10 -10 -9 -------- Run | Yrd Mat Min Exi Min Hostile Shots Fired 75 | . 21 . . 54 Missed 20 | . 6 . . 14 Damage Taken 1091 | . 214 . . 877 Core 253 | . 31 . . 222 Absorbed by Shields . | . . . . . Core Remaining (%) 100 | 100 . . . . Volleys Fired 63 | . 21 . . 42 Largest 2 | . 2 . . 2 Hottest 59 | . 40 . . 59 Shots Fired 105 | . 42 . . 63 Gun 81 | . 42 . . 39 Cannon 8 | . . . . 8 Launcher 16 | . . . . 16 Special . | . . . . . Kinetic 89 | . 42 . . 47 Thermal . | . . . . . Explosive 16 | . . . . 16 Electromagnetic . | . . . . . Robot Hit Streak 10 | . 10 . . 6 Robot Miss Streak 3 | . 3 . . 3 Penetration Max . | . . . . . Secondary Targets . | . . . . . Shots Hit Robots 57 | . 27 . . 30 Core Hits 51 | . 13 . . 38 Critical Kills . | . . . . . Critical Parts Destroyed . | . . . . . Critical Strikes . | . . . . . Melee Attacks . | . . . . . Impact . | . . . . . Slashing . | . . . . . Piercing . | . . . . . Sneak Attacks . | . . . . . Combat Hostiles . | . . . . . Follow-up Attacks . | . . . . . Damage Inflicted 1209 | . 271 . . 938 Guns 471 | . 271 . . 200 Cannons 149 | . . . . 149 Explosions 585 | . . . . 585 Melee . | . . . . . Ramming 4 | . . . . 4 Kinetic 620 | . 271 . . 349 Thermal . | . . . . . Explosive 585 | . . . . 585 Electromagnetic . | . . . . . Impact . | . . . . . Slashing . | . . . . . Piercing . | . . . . . Highest Corruption 4 | . . . . 4 Average Corruption 4 | . . . . 4 Corruption Purged . | . . . . . Corruption Blocked . | . . . . . Effects 10 | . . . . 10 Message Errors 1 | . . . . 1 Matter Fused 1 | . . . . 1 Energy Discharges 2 | . . . . 2 Data Loss (minor) 1 | . . . . 1 Data Loss (major) 2 | . . . . 2 Misfires 1 | . . . . 1 Weapon Failures 2 | . . . . 2 Overload Shots . | . . . . . Overflow Damage 18 | . . . . 18 Projectiles 8 | . . . . 8 Explosions 10 | . . . . 10 Melee . | . . . . . Knockbacks . | . . . . . Impact . | . . . . . Kinetic . | . . . . . Secondary . | . . . . . Self-Inflicted Damage 217 | . . . . 217 Shots 8 | . . . . 8 Rammed 1 | . . . . 1 Targets Rammed 1 | . . . . 1 Kicked . | . . . . . Crushed . | . . . . . Highest Temperature 42 | . 27 . . 42 Average Temperature 11 | . 10 . . 25 Received Heat Transfer 195 | . 135 . . 60 Siege Activations . | . . . . . Robots Corrupted . | . . . . . Combat Hostiles . | . . . . . Parts Fried . | . . . . . Impact Corruptions . | . . . . . Robots Melted . | . . . . . Combat Hostiles . | . . . . . Parts Melted . | . . . . . Heat Transferred . | . . . . . Parts Sabotaged . | . . . . . Parts Stolen . | . . . . . Parts Stripped . | . . . . . Power Chain Reactions . | . . . . . Alert | -11 -10 -10 -10 -9 ------- Run | Yrd Mat Min Exi Min Peak Influence 157 | . 123 47 . 157 Initial 47 | . . 47 . . Average 57 | . 53 47 . 64 Maximum Alert Level . | . . . . . Low Security (%) 100 | 100 100 100 . 100 Level 1 . | . . . . . Level 2 . | . . . . . Level 3 . | . . . . . Level 4 . | . . . . . Level 5 . | . . . . . High Security . | . . . . . Max Security . | . . . . . Squads Dispatched 1 | . 1 . . . Investigation . | . . . . . Extermination . | . . . . . Reinforcement 1 | . 1 . . . Assault . | . . . . . Garrison . | . . . . . Intercept . | . . . . . Searches Triggered . | . . . . . Construction Impeded . | . . . . . Haulers Reinforced . | . . . . . Active Scanning Responses . | . . . . . Cargo Convoy Interrupts . | . . . . . Stealth | -11 -10 -10 -10 -9 --------- Run | Yrd Mat Min Exi Min Distress Signals 1 | . . . . 1 Communications Jammed . | . . . . . Distress Signals . | . . . . . Times Spotted 42 | . 8 . . 34 Peak Tracking Total 9 | . 2 . . 9 Tactical Retreats 3 | . . . . 3 Traps | -11 -10 -10 -10 -9 ------- Run | Yrd Mat Min Exi Min Traps Triggered . | . . . . . Indirectly . | . . . . . Trap Hack Attempts . | . . . . . Triggered . | . . . . . Disarmed . | . . . . . Reprogrammed . | . . . . . Reused . | . . . . . Traps Extracted . | . . . . . Installed . | . . . . . Triggered . | . . . . . Machines | -11 -10 -10 -10 -9 ---------- Run | Yrd Mat Min Exi Min Machines Disabled 1 | . 1 . . . Max in Single Turn 1 | . 1 . . . Machines Repaired . | . . . . . Machines Dismantled . | . . . . . Machines Sabotaged . | . . . . . Overloaded Fab Kills . | . . . . . Hacking | -11 -10 -10 -10 -9 --------- Run | Yrd Mat Min Exi Min Machines Accessed 2 | . . . 2 . Terminals . | . . . . . Fabricators . | . . . . . Repair Stations . | . . . . . Recycling Units . | . . . . . Scanalyzers . | . . . . . Garrison Access . | . . . . . Total Hacks 2 | . . . 2 . Successful 2 | . . . 2 . Failed . | . . . . . Catastrophic . | . . . . . Database Lockouts . | . . . . . Manual . | . . . . . Terminals . | . . . . . Fabricators . | . . . . . Repair Stations . | . . . . . Recycling Units . | . . . . . Scanalyzers . | . . . . . Garrison Access . | . . . . . Terminal Hacks 2 | . . . 2 . Record 2 | . . . 2 . Fabricator Hacks . | . . . . . Repair Station Hacks . | . . . . . Recycling Unit Hacks . | . . . . . Scanalyzer . | . . . . . Garrison Access Hacks . | . . . . . Unauthorized Hacks . | . . . . . Terminals . | . . . . . Fabricators . | . . . . . Repair Stations . | . . . . . Recycling Units . | . . . . . Scanalyzers . | . . . . . Garrison Access . | . . . . . Data Cores Recovered . | . . . . . Used . | . . . . . Hacking Detections . | . . . . . Full Trace Events . | . . . . . Feedback Events . | . . . . . Feedback Blocked . | . . . . . Robot Schematics Acquired . | . . . . . Robots Built . | . . . . . Authchips . | . . . . . Time . | . . . . . Total Robot Build Rating . | . . . . . Part Schematics Acquired . | . . . . . Parts Built . | . . . . . Authchips . | . . . . . Time . | . . . . . Total Part Build Rating . | . . . . . Parts Repaired . | . . . . . Time . | . . . . . Parts Recycled . | . . . . . Recycled Matter . | . . . . . Retrieved Matter . | . . . . . Retrieved Components . | . . . . . Parts Scanalyzed . | . . . . . Part Schematics Acquired . | . . . . . Parts Damaged . | . . . . . Bothacking | -11 -10 -10 -10 -9 ------------ Run | Yrd Mat Min Exi Min Used RIF Installer . | . . . . . Robots Hacked . | . . . . . Non-combat . | . . . . . Combat . | . . . . . Robot Hacks Applied . | . . . . . Relay Couplers Released . | . . . . . Fabnet Peak Effective % . | . . . . . Robots Rewired . | . . . . . Allies Hacked . | . . . . . Hacks Repelled . | . . . . . Allies | -11 -10 -10 -10 -9 -------- Run | Yrd Mat Min Exi Min Total Allies 3 | . . 3 . . Largest Group 3 | . . 3 3 3 Highest-Rated Group 40 | . . 40 40 40 Highest-Rated Ally 16 | . . 16 16 16 Total Orders . | . . . . . Ally Attacks 7 | . . . . 7 Total Damage 59 | . . . . 59 Kills 5 | . . . . 5 Allies Corrupted . | . . . . . Allies Melted . | . . . . . Intel | -11 -10 -10 -10 -9 ------- Run | Yrd Mat Min Exi Min Robot Analysis Total . | . . . . . Derelict Logs Recovered 3 | . . 1 . 2 Drone Launches . | . . . . . Drone Recoveries . | . . . . . Exploration | -11 -10 -10 -10 -9 ------------- Run | Yrd Mat Min Exi Min Turns Passed 1462 | 40 164 183 345 730 Spaces Moved 1341 | 33 106 194 374 634 Core 19 | 9 . . . 10 Treads . | . . . . . Legs . | . . . . . Wheels 1322 | 24 106 194 374 624 Hover . | . . . . . Flight . | . . . . . Fastest Speed 50 | 50 90 90 90 80 Average Speed 89 | 79 90 90 90 89 Slowest Speed 250 | 90 90 90 90 250 Overloaded Moves . | . . . . . Propulsion Burnouts . | . . . . . Robots Hopped . | . . . . . Cave-ins Triggered . | . . . . . Exploration Rate (%) 48 | 3 27 36 80 95 Regions Visited 4 Branch Regions 3 Pre-discovered Areas 1 | . . 1 . . Known Exits Taken . | . . . . . Unknown Exits Taken 4 | 1 1 1 1 . Scrap Searched 3 | . . 1 . 2 Spaces Dug 25 | . . . . 25 Terrain Destroyed 123 | . . . . 123 Melee . | . . . . . Projectile 1 | . . . . 1 AOE 122 | . . . . 122 Terrain Rammed . | . . . . . Walls Destroyed . | . . . . . Machines Disabled . | . . . . . Actions | -11 -10 -10 -10 -9 --------- Run | Yrd Mat Min Exi Min Total 1507 | 46 135 202 383 741 Wait 49 | . 1 9 8 31 Move 1337 | 32 105 193 373 634 Hop . | . . . . . Pick Up 27 | 8 6 . . 13 Fast Attach 1 | . 1 . . . Attach 16 | 6 . . . 10 Detach . | . . . . . Swap 8 | . 1 . 1 6 Drop 5 | . . . 1 4 Fire 63 | . 21 . . 42 Melee . | . . . . . Ram 1 | . . . . 1 Kick . | . . . . . Crush . | . . . . . Escape Stasis . | . . . . . Rewire . | . . . . . Trap . | . . . . . Miscellaneous . | . . . . . Route ------- -11/Scrapyard -10/Materials -10/Mines -10/Exiles -9/Mines (discovered 2 exits: [*Mat x2]) History --------- Turn | Location | Event 20 | -11/Scrapyard | Discovered new exit (range 16) 41 | -11/Scrapyard | Entered Materials 174 | -10/Materials | Discovered new exit (range 13) 205 | -10/Materials | Entered Mines 207 | -10/Mines | Assisted by bots powering up and referring to "LRC-V3" 258 | -10/Mines | Learned location of Storage (-9) 271 | -10/Mines | Learned location of 1 exit from Materials 318 | -10/Mines | Build established: Mutant 377 | -10/Mines | Deemed a non-threat by the Exiles lab entrance 378 | -10/Mines | Discovered new exit (range 5) 388 | -10/Mines | Entered Exiles 388 | -10/Exiles | Found Exiles lab abandoned 388 | -10/Exiles | Accompanied by 3 allies 714 | -10/Exiles | Discovered new exit (range 14) 733 | -10/Exiles | Entered Mines 733 | -9/Mines | Accompanied by 3 allies 743 | -9/Mines | YI-UF0 nonchalantly dropped a Grenade Launcher on the ground 864 | -9/Mines | Found a damaged Exp. Sensor Array with a note attached 866 | -9/Mines | Found Prototype Device 867 | -9/Mines | Identified Exp. Sensor Array 904 | -9/Mines | Assembled infested the area 909 | -9/Mines | Assisted by a Guerilla fighting off Assembled 973 | -9/Mines | Lost 4 allies 1025 | -9/Mines | Core integrity fell below 50% 1045 | -9/Mines | Destroyed 10 combat bots 1072 | -9/Mines | Lost 5 parts (2n3w) 1099 | -9/Mines | A weapon hastily lodged in a ceiling crevice suddenly fell to the ground 1233 | -9/Mines | Lost 4 parts (1p1n2w) 1245 | -9/Mines | Discovered new exit (range 8) 1342 | -9/Mines | Discovered new exit (range 7) 1361 | -9/Mines | Build established: Scavenger-Mutant 1367 | -9/Mines | Learned Materials emergency access door positions 1460 | -9/Mines | Core integrity fell below 20% 1463 | -9/Mines | Destroyed by YI-UF0 with YI-UF0's Doublenader Last Messages --------------- Acquired 6 matter. Acquired derelict log, extracted data. Data stored: Materials emergency access points. System corrupted: Substantial component data lost. S-10 Pest destroyed. N3ZOC25KI TP,0>X1J6%EJKM CPSCXVF8L S-10 Pest destroyed. Destroyed Flight Unit. S-10 Pest destroyed. Acquired 18 matter. Acquired 6 matter. Dropped Wheel. Acquired 8 matter. Acquired 2 matter. R-06 Scavenger collects Structural Scanner. Dropped Wheel. Acquired 3 matter. Destroyed Shock Absorption System. Imp. Heat Sink destroyed. Map ----- +----------------------------------------------------+ | #?????????????????## #?###### #??# #### " | | # ##??????????????### #?# #??# ### " | | ## ######????????## ### #####??# ## " | | ?## #???????## ## #??????# # | | ??# ### #??????## #??????# | | ??# #?# #???#### ### #??????# ## | | ??# ##?# #??## | ## #?????? #?## | | ??# #??# #?## !% ## #?????? #???## # | | ??# #??# ### = ## #????? ####### # | | ### #??# ### #?????# ### # | | # #??# % ##?# #????# #??# ##### | | # ###??### ### !| ## %#??# #????# ??## #???? | | # #??????# #?####% ## #??## ##????? ??# ##??? | | # ######## #???## [## #???### #????????## ###?? | | # % % #?### r## #####?? ???????## ##? | | # ############# %!* # #?? ##??????# ## | | # #?????????# %=! ## ### #???????# ## | | # #?????????## r* #???????## | | #?????????# ###??????### | | ##?????????## # #####????????# * =% | | ##???????????# #*% #?##???????? ## # | | #???????????#### = #### #######? # # | | ####???????????## ###### *=" ""* | | # #????????????# % =%"%%"%!# | | # #####????????# # =% ###### *[ !* !# | | ###??????### ! @ g # ##### ##%%# | | #????????##% * %* # # # ####!%# | | # #?????????#### | %## ####! % | | ##??????????? ### #### ### % ## ## %# | | ###????????????# #?# #### ##?# # # # | | #####?##??????## #?## ### #??# * # | | ## ##???### #?## #??# %** # #### | | # #?##? # #?# ######## ## ##??? | | ## ##?# ## ### ### ! ### ##???? | | ?## ###???###!%= =%= ## #### [ #####????? | | ??## ##????? ##%######| # ## #??## [ ##???????? | | ???## #???### # #????####### #???# # #????????? | | ##### ##### ###=#??????????# #???## # #????????? | | = [ != #??????????# #???# ###??????### | | #=######### #### #?????????# #???# ########## | | ###??????# #???#??????????# #???## # ## # | | ##???????## #??????????????# #????# %# """ ## # | | #????????# #??????????????# #????# # """ ## # | | # #????????# ####???????????# #???## """ ## | | # #???????## ###??######## #??## % ## # | | # ###????## ##?# #??# !% """ # | | # ###### ### ########??## * =! """ #### | | # #??????????# """ #??? | | # ## #####??????????##### #??? | | # ########## #???????????????############??# | +----------------------------------------------------+ Best States ------------- Heat Dissipation 39 Energy Generation 10 Energy Capacity 250 Matter Stores 300 Matter Capacity 300 Sight Range 16 Terrain Scan Density 10 Evasion (%) 50 Item Schematics ----------------- None Robot Schematics ------------------ None Fabricated ------------ Nothing Alien Tech Used ----------------- None Achievements -------------- Exterminator Challenges ------------ None Game ------ Seed DisruptionNeutronFlightbrick Manual? 0 Play Time 00:14:42 Cumulative 57.0 hours Start 2024.04.23 @ 21:47:58 End 2024.04.23 @ 22:01:11 Sessions 1 Manual Loads 0 Difficulty Rogue Special Mode None Game No. 66 Rogue 57 Adventurer 9 Explorer 0 Win Type - Total 0 Types 0/0/0/0/0/0/0/0/0 Lore% 32 Gallery% 48 Achievement% 37 Wizard Run 0 Options --------- Layout 1 ASCII 0 Keyboard 0 Movement Numpad Keybinds 0 Fullscreen 1 Font 24/Smallcaps Map View 50x35 Zoom Use 0% Tactical HUD 0 Map Filters NONE Filters NONE Steam 1 RUN: 035942c3-f305-486d-98ea-9bfa5699385e